bitfinex/quotes_ETHUSD_20250331
["timestamp","ask_amount","ask_price","bid_price","bid_amount"]
[1743386743241,0.7563,1813.6,1813.3,5.51468]
[1743386743442,0.7563,1813.6,1813.3,11.02924]
[1743386743614,6.05,1813.8,1813.7,5.51359]
[1743386743816,0.8021,1813.9,1813.7,5.51359]
[1743386744010,0.8021,1813.9,1813.8,5.51328]
[1743386744231,0.8021,1813.9,1813.7,5.51359]
[1743386745145,6.31519,1813.9,1813.5,5.51399]
[1743386745546,6.31519,1813.9,1813.6,5.51376]
[1743386745547,0.8021,1813.9,1813.6,5.51376]
[1743386745746,0.8021,1813.9,1813.5,5.51399]
[1743386745953,6.31515,1813.9,1813.5,5.51399]
[1743386746137,5.51454,1813.4,1813.1,31.936]
[1743386746337,5.51454,1813.4,1813.1,0.1]
[1743386747158,5.51494,1813.3,1813.1,0.1]
[1743386747360,6.31721,1813.2,1813.1,0.1]
[1743386747579,0.8021,1813.2,1813.1,0.1]
[1743386748277,6.31721,1813.2,1813.1,0.1]
[1743386750582,0.8021,1813.2,1813.1,0.1]
[1743386751459,6.31721,1813.2,1813.1,0.1]
[1743386751660,0.8021,1813.2,1813.1,0.1]
[1743386752061,6.31721,1813.2,1813.1,0.1]
[1743386752345,6.8521,1813.2,1813.1,0.1]
[1743386752778,6.05,1813.2,1813.1,5.61541]
[1743386752981,6.05,1813.2,1813.1,0.1]
[1743386755079,6.05,1813.2,1813.1,5.61541]
[1743386755269,6.05,1813.2,1813.1,0.1]
[1743386758189,3.0,1813.3,1813.1,0.1]
[1743386761488,3.0,1813.3,1813.1,5.61532]
[1743386761781,7.2521,1813.5,1813.2,5.51511]
[1743386761990,3.0,1813.4,1813.2,5.51511]
[1743386762682,5.51482,1813.3,1813.1,0.1]
[1743386762894,9.32411,1813.2,1813.1,0.1]
[1743386763184,19.40622723,1813.2,1813.1,0.1]
[1743386763386,9.32593,1812.6,1812.5,0.51276466]
[1743386763587,18.85804723,1812.6,1812.5,0.51276466]
[1743386763753,18.4839007,1812.6,1812.5,0.51276466]
[1743386764660,5.51787,1812.3,1812.1,0.1]
[1743386765182,5.51761,1812.4,1812.1,0.1]
[1743386766161,5.51797,1812.3,1812.1,0.1]
[1743386766987,3.0,1812.4,1812.1,5.61833]
[1743386767153,3.0,1812.4,1812.2,6.079883]
[1743386767578,6.45,1812.6,1812.3,5.51785]
[1743386768481,6.45,1812.6,1812.2,6.908683]
[1743386768688,6.45,1812.6,1812.2,12.426583]
[1743386768989,6.45,1812.6,1812.2,26.926583]
[1743386769192,6.45,1812.6,1812.3,8.2103883]
[1743386769393,6.45,1812.6,1812.3,2.6926583]
[1743386769687,6.45,1812.6,1812.2,21.408773]
[1743386769688,11.96717,1812.6,1812.2,6.34694]
[1743386770060,5.51729,1812.5,1812.2,0.8288]
[1743386770260,11.96717,1812.6,1812.2,6.34687]
[1743386771064,17.48437,1812.6,1812.1,5.61845]
[1743386771264,11.96717,1812.6,1812.2,5.51811]
[1743386771475,17.48435,1812.6,1812.1,5.61845]
[1743386771774,17.48435,1812.6,1812.1,6.81505]
[1743386771963,5.51737,1812.5,1812.1,6.81505]
[1743386772181,5.51737,1812.5,1812.1,5.61845]
[1743386772373,0.809,1812.4,1812.1,5.61845]
[1743386772769,3.0,1812.5,1812.1,5.61828]
[1743386772976,8.51737,1812.5,1812.1,5.61828]
[1743386773166,5.51766,1812.4,1812.1,0.1]
[1743386773797,3.0,1812.5,1812.1,5.61831]
[1743386773997,3.0,1812.5,1812.1,6.263021]
[1743386774191,3.0,1812.5,1812.2,5.51802]
[1743386774394,6.45,1812.6,1812.1,0.744711]
[1743386774577,6.45,1812.6,1812.4,6.28669]
[1743386774767,6.45,1812.6,1812.4,0.7692]
[1743386774967,6.45,1812.6,1812.1,0.1]
[1743386775176,6.45,1812.6,1812.2,0.7692]
[1743386775472,11.96717,1812.6,1812.2,6.28718]
[1743386775987,5.51745,1812.5,1812.1,0.1]
[1743386776183,0.7793,1812.4,1812.1,0.1]
[1743386776383,3.0,1812.5,1812.1,5.61821]
[1743386776777,3.0,1812.5,1812.2,5.51809]
[1743386777083,3.0,1812.5,1812.1,0.1]
[1743386777287,6.45,1812.6,1812.3,5.51784]
[1743386777485,11.96718,1812.6,1812.1,6.27513]
[1743386777684,5.51755,1812.4,1812.1,0.1]
[1743386777884,6.29685,1812.4,1812.1,0.1]
[1743386778389,0.7793,1812.4,1812.1,0.1]
[1743386778793,6.69697,1812.4,1812.1,0.1]
[1743386779302,1.1793,1812.4,1812.1,0.1]
[1743386779501,6.69687,1812.4,1812.1,0.1]
[1743386779699,5.51796,1812.3,1812.1,0.1]
[1743386779998,9.29745,1812.2,1812.1,0.1]
[1743386780798,3.7793,1812.2,1812.1,0.1]
[1743386781203,9.29745,1812.2,1812.1,0.1]
[1743386782994,3.7793,1812.2,1812.1,0.1]
[1743386783366,9.98389434,1812.2,1812.1,0.1]
[1743386784600,16.43389434,1812.2,1812.1,0.1]
[1743386787696,10.91574434,1812.2,1812.1,0.1]
[1743386787890,15.74745,1812.2,1812.1,0.1]
[1743386788090,7.271,1812.2,1812.1,0.1]
[1743386788290,12.78915,1812.2,1812.1,0.1]
[1743386788511,15.78915,1812.2,1812.1,0.1]
[1743386790302,10.271,1812.2,1812.1,0.1]
[1743386790502,17.36806,1812.2,1812.1,0.1]
[1743386791405,11.84991,1812.2,1812.1,0.1]
[1743386791722,9.45,1812.2,1812.1,0.1]
[1743386791941,9.45,1812.2,1812.1,5.61845]
[1743386792093,9.45,1812.2,1811.6,1.10793945]
[1743386792094,6.34067,1811.7,1811.6,1.10793945]
[1743386792295,5.52078,1811.4,1811.1,0.932]
[1743386792496,5.92091,1811.3,1811.1,0.932]
[1743386792732,0.4,1811.3,1811.1,1.34273444]
[1743386792934,8.62895065,1811.3,1811.1,0.51073444]
[1743386793136,3.10801065,1811.3,1811.1,0.51073444]
[1743386793852,0.4,1811.3,1811.1,0.51073444]
[1743386794352,0.4,1811.3,1811.1,0.1]
[1743386796531,0.4,1811.3,1811.2,5.5212]
[1743386796873,0.4,1811.3,1811.2,12.0542]
[1743386798739,0.4,1811.3,1811.2,12.0552]
[1743386799145,0.4,1811.3,1811.2,0.832]
[1743386799351,5.92105,1811.3,1811.1,0.1]
[1743386799532,0.4,1811.3,1811.1,0.1]
[1743386799728,5.9209,1811.3,1811.1,0.1]
[1743386799957,8.61017835,1811.2,1811.1,0.1]
[1743386800149,8.12447284,1811.3,1811.1,0.1]
[1743386800150,11.62121463,1811.3,1811.1,0.1]
[1743386800352,5.5212,1811.2,1811.1,0.1]
[1743386802786,14.9712,1811.2,1811.1,0.1]
[1743386802990,15.7536,1811.2,1811.1,0.1]
[1743386803139,18.58958839,1811.2,1811.1,0.1]
[1743386803947,19.13958839,1811.2,1811.1,0.1]
[1743386804134,5.52344,1810.5,1810.2,31.87]
[1743386804342,0.2947,1810.4,1810.3,5.52394]
[1743386804537,0.1847,1810.4,1810.3,6.27434]
[1743386804737,0.1847,1810.4,1810.3,10.641176]
[1743386804968,0.1847,1810.4,1810.3,16.344176]
[1743386805471,0.1847,1810.4,1810.3,11.97734]
[1743386805768,5.52394,1810.3,1810.1,0.8504]
[1743386805970,0.1847,1810.2,1810.1,0.1]
[1743386806171,5.70895,1810.2,1810.1,0.1]
[1743386806349,0.1847,1810.2,1810.1,0.1]
[1743386806676,0.1847,1810.2,1810.1,0.8504]
[1743386806859,0.1847,1810.2,1810.1,0.1]
[1743386807647,5.70895,1810.2,1810.1,0.1]
[1743386808451,16.377253,1810.2,1810.1,0.1]
[1743386808665,6.30756,1809.9,1809.4,6.27702]
[1743386808907,5.71032,1809.8,1809.4,0.7504]
[1743386809207,0.1847,1809.8,1809.4,6.4694]
[1743386809368,5.71033,1809.8,1809.4,6.4694]
[1743386810464,5.71033,1809.8,1809.4,7.669537]
[1743386810670,6.1339474,1809.8,1809.4,7.669537]
[1743386810995,5.52588,1809.7,1809.4,7.669537]
[1743386811200,5.52579,1809.7,1809.4,7.669537]
[1743386811598,5.52579,1809.7,1809.4,1.950537]
[1743386811977,5.52579,1809.7,1809.3,0.005]
[1743386811978,5.52638,1809.5,1809.3,0.005]
[1743386812311,8.71139,1809.4,1809.3,0.005]
[1743386812477,22.58428915,1809.4,1809.3,1e-05]
[1743386812677,8.5273,1809.2,1809.1,0.1]
[1743386812883,13.02171635,1809.2,1809.1,0.1]
[1743386813198,19.15641635,1809.2,1809.1,0.1]
[1743386813579,5.52973,1808.5,1808.1,0.8504]
[1743386813788,5.71471,1808.4,1808.1,0.8504]
[1743386814132,5.53023,1808.3,1808.1,0.1]
[1743386814283,0.1847,1808.4,1808.1,0.1]
[1743386814480,0.1847,1808.4,1808.1,5.63051]
[1743386814787,0.1847,1808.4,1808.3,6.28045]
[1743386815711,5.71445,1808.4,1808.1,0.8504]
[1743386815914,0.1847,1808.4,1808.1,0.8504]
[1743386816083,5.71453,1808.4,1808.1,0.8504]
[1743386816280,0.1847,1808.4,1808.1,0.8504]
[1743386817088,0.1847,1808.4,1808.2,5.53022]
[1743386817285,0.1847,1808.4,1808.2,11.37622]
[1743386817487,0.1847,1808.4,1808.3,5.53005]
[1743386818107,0.1847,1808.4,1808.3,6.87465]
[1743386819232,0.1847,1808.4,1808.3,9.87465]
[1743386819393,0.05001971,1808.4,1808.3,11.999737]
[1743386819590,11.05398,1809.4,1809.0,0.7946]
[1743386819821,0.11,1809.3,1809.0,0.7946]
[1743386820394,0.11,1809.3,1809.1,5.52758]
[1743386820815,0.11,1809.3,1809.0,0.7946]
[1743386821221,0.11,1809.3,1809.0,1.979662]
[1743386821542,0.11,1809.4,1809.1,5.52733]
[1743386821743,0.11,1809.4,1809.2,5.5271]
[1743386823431,0.11,1809.4,1808.8,5.52832]
[1743386823432,5.52742,1809.2,1808.8,5.52832]
[1743386823628,0.11,1809.4,1808.9,5.52793]
[1743386823830,0.11,1809.4,1809.1,5.52739]
[1743386824133,0.11,1809.4,1809.0,0.552793]
[1743386824134,0.11,1809.4,1809.0,11.40587]
[1743386825433,5.6367,1809.4,1809.0,11.40587]
[1743386825832,0.11,1809.4,1809.3,5.52699]
[1743386826037,0.11,1809.7,1809.5,5.52626]
[1743386826201,0.11,1809.8,1809.5,5.52626]
[1743386826706,5.63559,1809.8,1809.4,11.40646]
[1743386827126,5.52609,1809.6,1809.4,5.88]
[1743386827353,6.80154039,1809.8,1809.3,5.52686]
[1743386827502,5.52596,1809.7,1809.3,5.52686]
[1743386828233,0.8641,1809.8,1809.3,0.55]
[1743386828539,0.11,1809.8,1809.6,11.05208]
[1743386828838,0.11,1809.8,1809.5,5.52619]
[1743386829535,0.11,1809.8,1809.7,5.52577]
[1743386829718,0.11,1809.8,1809.7,1.184626]
[1743386830317,11.4747,1810.1,1810.0,5.52486]
[1743386830318,0.11,1810.1,1810.0,5.52486]
[1743386831239,0.11,1810.1,1810.0,6.31946]
[1743386831407,0.11,1810.1,1810.0,6.86946]
[1743386831605,0.11,1810.1,1810.0,8.698522]
[1743386832006,0.11,1810.7,1810.6,5.52303]
[1743386832207,0.11,1810.8,1810.6,5.52303]
[1743386832445,0.11,1810.8,1810.7,5.52272]
[1743386833253,0.21,1810.9,1810.7,5.52272]
[1743386833538,0.21,1810.9,1810.8,5.892]
[1743386834907,0.21,1810.9,1810.7,0.552272]
[1743386835107,0.21,1810.9,1810.6,5.879]
[1743386836746,0.21,1810.9,1810.6,11.40202]
[1743386837112,0.21,1810.9,1810.7,5.52268]
[1743386837313,0.21,1810.9,1810.8,0.552268]
[1743386837931,0.21,1810.9,1810.6,5.879]
[1743386838635,0.21,1810.9,1810.7,5.52272]
[1743386839034,0.21,1810.9,1810.8,6.84132]
[1743386842213,0.21,1810.9,1810.8,15.2689]
[1743386842416,0.21,1810.9,1810.7,5.849]
[1743386842640,0.21,1810.9,1810.7,6.4339]
[1743386843652,0.21,1810.9,1810.7,11.95657]
[1743386844029,0.21,1810.9,1810.7,6.4339]
[1743386844347,0.21,1810.9,1810.7,11.95646]
[1743386844546,0.21,1810.9,1810.7,6.4339]
[1743386844856,0.21,1810.9,1810.8,0.64339]
[1743386845426,0.21,1810.9,1810.8,7.48471]
[1743386845622,0.21,1810.9,1810.8,10.48471]
[1743386846251,0.21,1810.9,1810.8,24.98471]
[1743386847063,0.21,1810.9,1810.8,19.46229]
[1743386847263,0.21,1810.9,1810.8,16.30971]
[1743386847459,0.21,1810.9,1810.8,4.96229]
[1743386847662,0.21,1810.9,1810.8,10.78829]
[1743386847863,0.21,1810.9,1810.8,1.96229]
[1743386848033,0.21,1810.9,1810.8,7.78629]
[1743386848842,0.21,1810.9,1810.8,13.30871]
[1743386849058,0.21,1810.9,1810.8,7.78629]
[1743386850883,0.21,1810.9,1810.8,13.30871]
[1743386851949,0.21,1810.9,1810.8,17.40680954]
[1743386852152,0.21,1810.9,1810.8,31.90680954]
[1743386852967,0.21,1810.9,1810.8,57.96080954]
[1743386853181,0.21,1810.9,1810.8,63.75580954]
[1743386856569,0.21,1810.9,1810.8,57.96080954]
[1743386856766,0.21,1810.9,1810.8,63.73280954]
[1743386865390,0.21,1810.9,1810.8,63.68380954]
[1743386867163,20.626549,1811.3,1810.8,63.68380954]
[1743386867395,3.82579397,1811.3,1811.2,9.3184]
[1743386867690,3.82579397,1811.3,1811.2,9.8684]
[1743386867893,3.82579397,1811.3,1811.2,30.1034]
[1743386869093,3.82579397,1811.3,1811.2,30.0964]
[1743386869496,3.82579397,1811.3,1811.2,30.0944]
[1743386870505,3.82579397,1811.3,1811.2,30.51720742]
[1743386871412,3.82579397,1811.3,1811.2,24.3684]
[1743386871576,3.82579397,1811.3,1811.2,14.7872]
[1743386871998,3.82579397,1811.3,1811.2,29.2872]
[1743386872703,3.82579397,1811.3,1811.2,23.5712]
[1743386872908,3.82579397,1811.3,1811.2,29.2812]
[1743386873511,3.82579397,1811.3,1811.2,23.5712]
[1743386874309,3.82579397,1811.3,1811.2,29.2762]
[1743386875407,3.82579397,1811.3,1811.2,23.5712]
[1743386875578,3.82579397,1811.3,1811.2,29.2762]
[1743386876387,3.82579397,1811.3,1811.2,14.5]
[1743386876586,5.03417337,1811.3,1810.8,37.4004]
[1743386876890,5.03417337,1811.3,1811.0,0.55]
[1743386877080,5.03417337,1811.3,1811.0,15.05]
[1743386877275,4.65159397,1811.3,1811.0,15.05]
[1743386880116,4.65159397,1811.3,1811.0,20.57168]
[1743386880409,3.82579397,1811.3,1811.1,5.52136]
[1743386880612,3.82579397,1811.3,1811.1,11.04266]
[1743386880788,3.82579397,1811.3,1811.2,5.5212]
[1743386880994,3.82579397,1811.3,1811.2,20.0212]
[1743386881503,3.82579397,1811.3,1811.2,14.5]
[1743386882304,3.82579397,1811.3,1811.2,20.0212]
[1743386882516,3.82579397,1811.3,1811.2,20.5712]
[1743386883124,3.82579397,1811.3,1811.2,20.755]
[1743386883697,3.82579397,1811.3,1811.2,26.2762]
[1743386884030,4.65669397,1811.3,1811.2,6.255]
[1743386884408,4.65669397,1811.3,1810.8,37.40039]
[1743386884718,5.12236337,1811.3,1810.9,20.205]
[1743386884902,4.65669397,1811.3,1810.9,20.205]
[1743386887032,4.65669397,1811.3,1810.9,14.5]
[1743386887207,0.8309,1811.2,1810.9,5.705]
[1743386887928,0.8309,1811.2,1810.9,20.205]
[1743386893708,0.8309,1811.2,1811.0,0.55]
[1743386893908,3.82579397,1811.3,1811.0,6.07165]
[1743386894310,3.82579397,1811.3,1811.1,14.5]
[1743386895034,3.82579397,1811.3,1811.1,20.02148]
[1743386895404,3.82579397,1811.3,1811.2,6.0712]
[1743386895804,3.82579397,1811.3,1811.2,6.256]
[1743386897809,3.82579397,1811.3,1811.2,20.756]
[1743386900350,3.82579397,1811.3,1811.2,6.256]
[1743386902546,3.82579397,1811.3,1811.2,11.7772]
[1743386904247,3.82579397,1811.3,1811.2,26.2772]
[1743386904548,3.82579397,1811.3,1811.2,27.37660691]
[1743386904947,3.82579397,1811.3,1811.2,1.09940691]
[1743386905146,3.82579397,1811.3,1811.2,5.705]
[1743386905339,0.8287,1811.2,1811.0,5.705]
[1743386905544,0.8287,1811.2,1810.9,5.705]
[1743386905918,0.8287,1811.2,1810.8,31.878]
[1743386906125,6.35081,1810.9,1810.8,31.878]
[1743386906424,5.52242,1810.8,1810.2,1.11932452]
[1743386906648,6.35234,1810.4,1810.1,31.869]
[1743386906955,6.35247,1810.4,1810.1,31.869]
[1743386907922,9.06192136,1810.4,1810.1,31.869]
[1743386908119,0.823,1810.1,1809.5,5.52638]
[1743386908428,0.823,1810.1,1809.6,5.704]
[1743386908621,0.823,1810.1,1809.6,11.22989]
[1743386908826,0.823,1810.1,1809.7,5.52564]
[1743386909028,0.823,1810.1,1809.6,11.22989]
[1743386909652,0.823,1810.1,1809.8,5.52526]
[1743386909828,0.823,1810.1,1809.7,6.07554]
[1743386910252,0.823,1810.1,1809.8,5.52522]
[1743386910452,0.823,1810.5,1809.9,0.55]
[1743386910655,0.823,1810.5,1810.2,5.52421]
[1743386910835,0.823,1810.5,1810.3,0.55]
[1743386911023,0.823,1810.5,1810.4,11.22864]
[1743386911223,0.823,1810.9,1810.5,6.07312]
[1743386912035,0.823,1810.9,1810.3,37.39992]
[1743386912235,0.823,1810.9,1810.4,11.7785]
[1743386912529,0.823,1810.9,1810.4,6.255]
[1743386912958,0.823,1810.9,1810.4,0.55]
[1743386913163,0.823,1810.9,1810.5,5.706]
[1743386913561,0.823,1810.9,1810.5,11.22913]
[1743386913766,0.823,1810.9,1810.6,0.55]
[1743386913968,0.823,1810.9,1810.6,6.07301]
[1743386914342,0.823,1811.2,1810.6,0.55]
[1743386914541,0.823,1811.2,1810.8,0.55]
[1743386914741,0.823,1811.2,1810.9,5.706]
[1743386915672,0.823,1811.2,1811.0,0.55]
[1743386915842,3.82579397,1811.3,1811.0,0.55]
[1743386916569,3.82579397,1811.3,1811.0,6.0718]
[1743386916761,3.82579397,1811.3,1811.1,5.52137]
[1743386917476,3.82579397,1811.3,1811.0,6.0718]
[1743386917773,3.82579397,1811.3,1811.1,5.52145]
[1743386918340,3.82579397,1811.3,1811.2,6.0712]
[1743386918739,3.82579397,1811.3,1811.2,9.8482]
[1743386919785,3.82579397,1811.3,1811.2,41.7232]
[1743386921289,3.82579397,1811.3,1811.2,47.4282]
[1743386921853,3.82579397,1811.3,1811.2,47.84648335]
[1743386923380,3.82579397,1811.3,1811.2,48.94329821]
[1743386924486,3.82579397,1811.3,1811.2,43.23829821]
[1743386924792,3.82579397,1811.3,1811.2,48.94129821]
[1743386926392,0.1,1811.9,1811.2,43.42009821]
[1743386926597,0.1,1811.9,1811.8,9.87667]
[1743386926793,0.1,1811.9,1811.8,15.57967]
[1743386929126,0.1,1811.9,1811.8,15.9888333]
[1743386929325,0.8146,1812.8,1812.5,5.51711]
[1743386929600,0.8146,1812.8,1812.6,5.703]
[1743386930792,0.1,1812.9,1812.8,0.55]
[1743386931386,0.1,1812.9,1812.8,5.701]
[1743386931988,0.1,1812.9,1812.8,6.251]
[1743386932189,0.1,1812.9,1812.8,11.76732]
[1743386932988,0.1,1812.9,1812.8,6.06632]
[1743386933207,0.1,1812.9,1812.8,11.76632]
[1743386934907,0.1,1812.9,1812.8,14.76632]
[1743386936007,0.1,1812.9,1812.8,15.8608512]
[1743386936217,1e-05,1812.9,1812.8,16.94684882]
[1743386937080,1e-05,1812.9,1812.8,16.6681512]
[1743386937482,1e-05,1812.9,1812.8,16.94651606]
[1743386937808,1e-05,1812.9,1812.8,16.6671512]
[1743386940612,1e-05,1812.9,1812.8,10.4181512]
[1743386940909,1e-05,1812.9,1812.8,12.3088512]
[1743386941313,1e-05,1812.9,1812.8,6.7925312]
[1743386941514,0.80981,1812.9,1812.8,1.0945312]
[1743386941707,0.80981,1812.9,1812.8,5.698]
[1743386942929,0.80981,1812.9,1812.8,6.248]
[1743386943319,0.80981,1812.9,1812.8,5.698]
[1743386945086,0.80981,1812.9,1812.3,37.38357]
[1743386945287,6.32597,1812.9,1812.4,5.697]
[1743386945490,0.8098,1812.8,1812.4,5.697]
[1743386945690,0.8098,1812.8,1812.3,37.38383]
[1743386945912,0.8098,1812.8,1812.4,5.697]
[1743386948390,9.32625,1812.8,1812.5,5.697]
[1743386948589,0.8098,1812.7,1812.5,5.697]
[1743386948824,0.8098,1812.4,1812.3,31.866]
[1743386949609,0.8098,1812.4,1812.3,32.416]
[1743386950195,0.8098,1812.4,1812.3,31.866]
[1743386951191,6.32734,1812.4,1812.3,31.866]
[1743386951809,6.32795,1812.3,1811.9,14.5]
[1743386952010,0.8098,1812.8,1812.4,5.5173]
[1743386952219,0.8098,1812.8,1811.9,15.2937]
[1743386952220,0.8098,1812.8,1812.5,11.76408]
[1743386952727,0.8098,1812.8,1812.5,11.76406]
[1743386953114,0.8098,1812.8,1812.5,6.247]
[1743386954195,0.8098,1812.8,1812.5,11.76421]
[1743386954397,0.8098,1812.8,1812.5,6.247]
[1743386954598,0.8098,1812.8,1812.5,17.28114]
[1743386954902,0.8098,1812.8,1812.6,11.0336]
[1743386955107,0.8098,1812.8,1812.7,5.51663]
[1743386955307,0.8098,1812.8,1812.7,6.06663]
[1743386955727,1e-05,1812.9,1812.7,26.08306]
[1743386955940,1e-05,1812.9,1812.7,14.5]
[1743386956239,3.8197,1812.8,1812.3,31.845]
[1743386956408,0.8197,1812.6,1812.3,31.845]
[1743386957006,0.8197,1812.6,1812.4,5.51747]
[1743386957209,0.8197,1812.8,1812.5,11.03448]
[1743386957413,0.8197,1812.8,1812.5,5.51724]
[1743386957619,0.8197,1812.8,1812.6,5.697]
[1743386958862,1e-05,1812.9,1812.7,5.51663]
[1743386959357,1e-05,1812.9,1812.6,11.21392]
[1743386960252,1e-05,1812.9,1812.6,11.21373]
[1743386960947,1e-05,1812.9,1812.7,5.51651]
[1743386961359,1e-05,1812.9,1812.6,11.21373]
[1743386961950,1e-05,1812.9,1812.6,16.73052]
[1743386962156,1e-05,1812.9,1812.7,5.51649]
[1743386962357,1e-05,1812.9,1812.8,5.51632]
[1743386963074,1e-05,1812.9,1812.7,5.51649]
[1743386963436,1e-05,1812.9,1812.8,5.51632]
[1743386966457,1e-05,1812.9,1812.8,5.696]
[1743386967350,0.81971,1812.9,1812.7,5.696]
[1743386967550,0.81971,1812.9,1812.7,11.21262]
[1743386969779,0.81971,1812.9,1812.8,5.51632]
[1743386969948,1e-05,1812.9,1812.8,6.89152]
[1743386971276,1e-05,1812.9,1812.8,21.39152]
[1743386973193,1e-05,1812.9,1812.8,27.08652]
[1743386973560,1e-05,1812.9,1812.8,21.39152]
[1743386973760,1e-05,1812.9,1812.8,27.08652]
[1743386977597,1e-05,1812.9,1812.8,28.21773021]
[1743386978399,1e-05,1812.9,1812.8,31.21773021]
[1743386978771,1e-05,1812.9,1812.8,31.31773021]
[1743386979597,1e-05,1812.9,1812.8,31.21773021]
[1743386980486,1e-05,1812.9,1812.8,31.21673021]
[1743386986880,1e-05,1812.9,1812.8,31.21573021]
[1743386990388,1e-05,1812.9,1812.8,63.04473021]
[1743386995414,0.8267,1813.7,1813.6,5.51389]
[1743386995709,0.8267,1813.7,1813.6,11.75489]
[1743386995911,0.9267,1813.9,1813.8,5.51328]
[1743386997691,0.9267,1813.9,1813.8,6.06328]
[1743386998313,0.1,1813.9,1813.8,6.06328]
[1743386999599,0.1,1813.9,1813.8,20.56328]
[1743386999787,0.05,1813.9,1813.8,20.56328]
[1743387002527,0.05,1813.9,1813.8,27.33576447]
[1743387002724,0.05,1813.9,1813.8,12.83576447]
[1743387003294,0.05,1813.9,1813.8,27.33576447]
[1743387007722,0.7784,1814.3,1814.2,5.51207]
[1743387007920,0.7784,1814.8,1814.7,5.51055]
[1743387008107,0.7784,1814.8,1814.7,5.688]
[1743387008513,0.7784,1814.8,1814.7,11.19855]
[1743387009428,0.7784,1814.8,1814.7,11.74855]
[1743387010430,0.1,1814.9,1814.8,6.06024]
[1743387011235,0.1,1814.9,1814.8,6.47214082]
[1743387012027,0.1,1814.9,1814.8,20.97214082]
[1743387014105,0.1,1814.9,1814.8,21.76634082]
[1743387015942,0.1,1814.9,1814.8,22.88488755]
[1743387016826,0.1,1814.9,1814.8,22.09068755]
[1743387017539,1e-05,1814.9,1814.8,25.09068755]
[1743387019960,1e-05,1814.9,1814.8,15.61854673]
[1743387020113,1e-05,1814.9,1814.8,6.80254673]
[1743387020319,1e-05,1814.9,1814.8,7.35254673]
[1743387020522,1e-05,1814.9,1814.8,6.80254673]
[1743387020837,1e-05,1814.9,1814.8,21.85254673]
[1743387021039,1e-05,1814.9,1814.8,21.30254673]
[1743387021237,1e-05,1814.9,1814.8,6.80254673]
[1743387021437,1e-05,1814.9,1814.8,7.35254673]
[1743387021635,1e-05,1814.9,1814.8,26.81278673]
[1743387021842,1e-05,1814.9,1814.8,27.36278673]
[1743387024254,1e-05,1814.9,1814.8,30.36278673]
[1743387025954,1e-05,1814.9,1814.8,24.67878673]
[1743387026129,1e-05,1814.9,1814.8,21.67878673]
[1743387026334,1e-05,1814.9,1814.8,27.36078673]
[1743387029539,1e-05,1814.9,1814.8,28.18828673]
[1743387034167,1e-05,1814.9,1814.8,31.18828673]
[1743387035659,1e-05,1814.9,1814.8,62.98628673]
[1743387036066,1e-05,1814.9,1814.8,59.15778673]
[1743387039965,1e-05,1814.9,1814.8,59.15678673]
[1743387043052,1e-05,1814.9,1814.8,59.15578673]
[1743387043249,1e-05,1814.9,1814.8,58.60578673]
[1743387043460,0.75231,1814.9,1814.8,58.60578673]
[1743387043639,0.75231,1814.9,1814.8,59.15578673]
[1743387045339,0.75231,1814.9,1814.8,53.47678673]
[1743387045545,0.75231,1814.9,1814.8,59.15578673]
[1743387045947,0.75231,1814.9,1814.8,44.65578673]
[1743387048544,1e-05,1814.9,1814.8,44.65578673]
[1743387050457,1e-05,1814.9,1814.8,59.15578673]
[1743387051246,1e-05,1814.9,1814.8,62.15578673]
[1743387053079,1e-05,1814.9,1814.8,62.15478673]
[1743387057084,1e-05,1814.9,1814.8,62.91898673]
[1743387061761,0.7523,1815.7,1815.6,5.50782]
[1743387061961,0.7523,1815.7,1815.6,11.73382]
[1743387062378,0.7523,1815.7,1815.6,26.23382]
[1743387063161,0.7523,1815.7,1815.6,14.5]
[1743387063382,0.7523,1815.7,1815.6,11.18282]
[1743387063572,0.7523,1815.7,1815.6,11.73282]
[1743387063988,0.7523,1815.7,1815.6,26.23282]
[1743387064361,0.7523,1815.7,1815.6,52.518]
[1743387064577,0.7523,1815.7,1815.6,58.02582]
[1743387064960,0.8963,1815.9,1815.6,58.02564]
[1743387065160,0.8963,1815.9,1815.8,6.05721]
[1743387066193,0.1,1815.9,1815.8,6.05721]
[1743387066561,0.1,1815.9,1815.8,20.55721]
[1743387067308,0.1,1815.9,1815.8,26.23121]
[1743387070009,0.8963,1815.9,1815.8,14.5]
[1743387070309,0.8963,1815.9,1815.8,5.673]
[1743387070596,6.40346,1815.9,1815.6,31.793]
[1743387070899,0.7963,1815.7,1815.6,37.466]
[1743387071078,8.21067315,1815.7,1815.6,31.793]
[1743387071415,0.7963,1815.7,1815.6,31.793]
[1743387073292,6.30381,1815.7,1815.6,31.793]
[1743387073597,7.81927992,1815.7,1815.6,31.793]
[1743387074267,0.7963,1815.7,1815.6,31.793]
[1743387074800,6.30381,1815.7,1815.6,31.793]
[1743387077063,5.50856,1815.4,1814.9,37.2989]
[1743387077268,0.806,1815.3,1815.0,5.672]
[1743387077480,0.806,1815.3,1815.1,14.5]